bitfinex-derivatives/quotes_SOLF0:USTF0_20250311
["timestamp","ask_amount","ask_price","bid_price","bid_amount"]
[1741723263289,7.8189,127.93,127.92,0.05628965]
[1741723263593,0.05313255,127.95,127.92,0.05628965]
[1741723264492,61.88258595,127.94,127.92,0.05628965]
[1741723264695,67.92188595,127.94,127.85,33.52]
[1741723264991,28.36258595,127.92,127.79,218.36258595]
[1741723265195,28.36258595,127.9,127.8,33.52]
[1741723265689,0.05652129,127.86,127.84,0.05106173]
[1741723266484,291.44,127.93,127.84,2.10746173]
[1741723266689,291.44,127.93,127.84,2.0564]
[1741723267088,7.8217,127.89,127.85,7.8235]
[1741723267294,28.36258595,127.92,127.84,2.0564]
[1741723267689,7.8221,127.88,127.87,0.0509761]
[1741723268101,7.8221,127.88,127.81,7.8257]
[1741723268102,7.8235,127.86,127.81,7.8257]
[1741723268400,7.8235,127.86,127.81,33.52]
[1741723268695,7.8228,127.87,127.81,33.52]
[1741723268894,33.52,127.89,127.81,33.52]
[1741723269090,28.36258595,127.88,127.81,33.52]
[1741723269294,7.8251,127.83,127.79,33.52]
[1741723269495,258.0,127.85,127.76,4.0529]
[1741723269696,258.0,127.85,127.77,33.52]
[1741723269902,7.8264,127.81,127.77,33.52]
[1741723270292,28.36258595,127.84,127.76,7.8291]
[1741723270501,0.05294398,127.8,127.78,0.05344123]
[1741723272500,0.05294398,127.8,127.72,4.194]
[1741723272695,28.41552993,127.8,127.72,33.54]
[1741723272899,28.36258595,127.8,127.73,7.8307]
[1741723273198,28.36258595,127.8,127.72,33.54]
[1741723273604,7.8289,127.77,127.72,33.54]
[1741723273792,0.05770779,127.77,127.75,0.05195916]
[1741723273992,0.05770779,127.77,127.67,28.36258595]
[1741723273993,258.13770779,127.77,127.67,28.36258595]
[1741723274199,61.90258595,127.76,127.66,33.54]
[1741723274401,258.08,127.77,127.7,7.833]
[1741723274698,7.8297,127.76,127.7,33.54]
[1741723274901,258.08,127.77,127.7,33.54]
[1741723275205,0.05990843,127.75,127.72,0.05283489]
[1741723275896,28.42249438,127.75,127.72,0.05283489]
[1741723276295,3.9815,127.74,127.72,0.05283489]
[1741723276499,192.0,127.73,127.6,31.74139394]
[1741723276699,32.34408595,127.74,127.6,31.74139394]
[1741723276700,28.36258595,127.69,127.6,31.74139394]
[1741723276906,7.8355,127.66,127.61,7.8381]
[1741723277202,28.36258595,127.63,127.6,31.74139394]
[1741723277399,33.54,127.62,127.54,28.36258595]
[1741723277596,0.05814637,127.63,127.6,0.05324602]
[1741723277794,0.05814637,127.63,127.54,61.90258595]
[1741723277997,2.0245,127.65,127.6,7.89525681]
[1741723278194,2.0245,127.65,127.6,0.05655681]
[1741723278403,0.05540222,127.64,127.58,33.54]
[1741723278604,0.05540222,127.64,127.61,7.89057837]
[1741723278803,0.05540222,127.64,127.61,0.05247837]
[1741723279104,0.05540222,127.64,127.63,7.8373]
[1741723279405,258.16,127.69,127.62,33.56]
[1741723280504,0.05993515,127.67,127.64,0.05224495]
[1741723281104,0.05993515,127.67,127.66,7.8355]
[1741723282207,0.05993515,127.67,127.64,0.05224495]
[1741723282409,28.36258595,127.66,127.64,0.05224495]
[1741723282707,0.05993515,127.67,127.64,0.05224495]
[1741723283409,7.89533515,127.67,127.64,0.05224495]
[1741723283604,0.05993515,127.67,127.64,0.05224495]
[1741723284410,7.89493515,127.67,127.64,0.05224495]
[1741723284604,0.05993515,127.67,127.64,0.05224495]
[1741723286109,7.8359,127.66,127.64,0.05224495]
[1741723286608,7.8361,127.65,127.64,0.05224495]
[1741723286807,30.51428595,127.66,127.59,45.5432]
[1741723287108,34.54388595,127.66,127.59,35.6451]
[1741723287308,2.1517,127.66,127.59,35.6451]
[1741723287706,9.9876,127.66,127.62,7.8376]
[1741723287907,0.0524215,127.64,127.62,7.8376]
[1741723288104,0.0524215,127.64,127.61,0.05366572]
[1741723288304,0.0524215,127.64,127.63,7.8373]
[1741723289806,0.0524215,127.64,127.63,41.4173]
[1741723290006,258.34,127.69,127.66,7.8352]
[1741723290206,258.34,127.69,127.63,33.58]
[1741723290712,7.835,127.67,127.64,7.8363]
[1741723290914,258.34,127.69,127.63,33.58]
[1741723291106,258.34,127.69,127.66,7.8353]
[1741723291306,258.39759432,127.69,127.64,0.0567385]
[1741723293113,28.36258595,127.68,127.64,0.0567385]
[1741723293310,28.36258595,127.66,127.59,2.0651]
[1741723293507,28.36258595,127.64,127.59,33.58]
[1741723293707,28.36258595,127.64,127.58,33.58]
[1741723293908,36.19978595,127.64,127.6,7.8386]
[1741723294109,36.19978595,127.64,127.58,33.58]
[1741723294311,28.36258595,127.64,127.58,33.58]
[1741723294510,0.05259032,127.62,127.6,0.05005324]
[1741723295113,28.41517627,127.62,127.6,0.05005324]
[1741723295316,7.8386,127.61,127.6,0.05005324]
[1741723296018,258.52,127.61,127.52,37.7243]
[1741723296216,28.36258595,127.57,127.52,35.7438]
[1741723297110,0.05002067,127.56,127.53,0.05993927]
[1741723297312,28.36258595,127.57,127.53,0.05993927]
[1741723297507,0.05766241,127.56,127.53,7.90303927]
[1741723297713,0.05766241,127.56,127.53,0.05993927]
[1741723298117,0.05766241,127.56,127.53,7.90323927]
[1741723298818,0.05766241,127.56,127.54,7.8426]
[1741723299120,0.05766241,127.56,127.53,0.05993927]
[1741723299317,7.8434,127.54,127.48,2.0006]
[1741723299510,28.36258595,127.55,127.47,1.9805]
[1741723299714,63.64258595,127.55,127.46,2.134]
[1741723299915,7.8444,127.52,127.48,7.8461]
[1741723300116,28.36258595,127.52,127.46,35.28]
[1741723300409,28.36258595,127.49,127.34,64.26258595]
[1741723300611,0.049966,127.5,127.36,4.2304]
[1741723300812,28.36258595,127.49,127.37,30.49768595]
[1741723301018,28.36258595,127.49,127.38,36.1]
[1741723301615,36.20868595,127.49,127.38,36.1]
[1741723301812,0.05646238,127.45,127.42,0.05250039]
[1741723302018,258.58,127.52,127.47,7.8466]
[1741723302419,258.58,127.52,127.44,2.1208]
[1741723302924,6.1997,127.55,127.44,2.1208]
[1741723303118,4.161,127.55,127.47,0.05991974]
[1741723303323,28.36258595,127.56,127.48,36.12]
[1741723303524,260.7753,127.58,127.49,1.9782]
[1741723303827,268.6158,127.58,127.53,7.843]
[1741723304029,268.6158,127.58,127.49,1.9782]
[1741723304326,260.7753,127.58,127.49,1.9782]
[1741723304519,0.05649864,127.55,127.52,0.05153346]
[1741723305320,0.05649864,127.55,127.52,7.89553346]
[1741723305630,0.05649864,127.55,127.52,0.05153346]
[1741723306625,0.05649864,127.55,127.52,7.89553346]
[1741723306830,0.05649864,127.55,127.52,0.05153346]
[1741723307029,7.89879864,127.55,127.52,0.05153346]
[1741723307331,0.05649864,127.55,127.52,0.05153346]
[1741723307530,0.05649864,127.55,127.54,7.8428]
[1741723310736,258.68,127.58,127.56,7.8413]
[1741723311035,258.68,127.58,127.52,36.18]
[1741723311332,52.75619504,127.63,127.52,36.18]
[1741723311532,7.8387,127.61,127.52,36.18]
[1741723311732,7.8387,127.61,127.57,7.8404]
[1741723311937,52.75619504,127.63,127.57,7.8404]
[1741723311938,0.0509587,127.58,127.57,7.8404]
[1741723312334,52.75619504,127.63,127.58,7.8403]
[1741723312640,0.0517454,127.59,127.58,7.8403]
[1741723312829,52.75619504,127.63,127.58,7.8403]
[1741723313035,0.05467629,127.6,127.59,0.05819552]
[1741723314438,0.05467629,127.6,127.59,7.89789552]
[1741723314641,0.05467629,127.6,127.59,0.05819552]
[1741723315530,7.89377629,127.6,127.59,0.05819552]
[1741723316644,0.05467629,127.6,127.59,0.05819552]
[1741723317041,7.89377629,127.6,127.59,0.05819552]
[1741723317239,0.05467629,127.6,127.59,0.05819552]
[1741723317636,0.05467629,127.6,127.59,7.89789552]
[1741723318245,0.05467629,127.6,127.59,0.05819552]
[1741723318848,7.8401,127.59,127.55,7.8417]
[1741723319047,54.44609504,127.59,127.51,2.1133]
[1741723319347,54.44609504,127.59,127.52,35.52]
[1741723319548,46.60599504,127.62,127.53,35.5]
[1741723319946,0.05641105,127.59,127.57,7.8409]
[1741723320349,0.05641105,127.59,127.56,0.05323006]
[1741723320549,0.05641105,127.59,127.58,7.8404]
[1741723321648,0.05641105,127.59,127.56,0.05323006]
[1741723323052,0.05641105,127.59,127.58,7.8404]
[1741723325055,0.05641105,127.59,127.58,43.1804]
[1741723325553,4.1113,127.63,127.61,7.8381]
[1741723326049,258.7,127.64,127.62,7.8376]
[1741723326250,258.7,127.64,127.58,35.34]
[1741723326559,0.05532534,127.62,127.6,0.05043422]
[1741723326750,0.05532534,127.62,127.6,7.88923422]
[1741723326948,0.05532534,127.62,127.6,0.05043422]
[1741723327454,0.05532534,127.62,127.61,7.8385]
[1741723328757,1.9636,127.67,127.66,7.8355]
[1741723328956,54.43989504,127.69,127.66,7.8355]
[1741723329158,268.6405,127.7,127.67,7.8343]
[1741723329856,268.6990791,127.7,127.67,7.89003605]
[1741723330053,260.8657791,127.7,127.67,7.89003605]
[1741723330356,260.8657791,127.7,127.68,7.8339]
[1741723330557,260.8657791,127.7,127.67,0.05573605]
[1741723330758,7.8337,127.69,127.67,0.05573605]
[1741723331057,260.8657791,127.7,127.67,0.05573605]
[1741723331352,268.6989791,127.7,127.67,7.89053605]
[1741723331751,260.8657791,127.7,127.67,0.05573605]
[1741723332052,258.6985791,127.7,127.67,0.05573605]
[1741723332456,322.38874113,127.7,127.6,35.06]
[1741723332657,322.33016203,127.7,127.6,35.06]
[1741723333156,322.33016203,127.7,127.64,7.8363]
[1741723333459,322.33016203,127.7,127.6,35.06]
[1741723333653,0.05061188,127.68,127.66,0.05355107]
[1741723333860,0.05061188,127.68,127.66,35.21355107]
[1741723334059,0.05061188,127.68,127.67,7.8348]
[1741723336156,0.05061188,127.68,127.66,43.04875107]
[1741723336357,7.8348,127.67,127.66,0.05355107]
[1741723336553,7.8348,127.67,127.61,35.04]
[1741723336554,28.63016203,127.67,127.61,35.04]
[1741723336858,7.8374,127.63,127.57,6.0113]
[1741723337060,7.8374,127.63,127.6,35.04]
[1741723337257,63.65016203,127.67,127.57,6.0113]
[1741723337454,7.8382,127.62,127.58,35.04]
[1741723337755,0.05350354,127.61,127.59,0.05421396]
[1741723338062,28.63016203,127.68,127.58,35.04]
[1741723338358,7.8378,127.63,127.58,35.04]
[1741723338654,0.05644466,127.64,127.62,0.05302447]
[1741723338958,0.05644466,127.64,127.62,7.89194288]
[1741723339160,0.05644466,127.64,127.62,0.05404288]
[1741723339561,0.05644466,127.64,127.63,7.8373]
[1741723339959,0.05644466,127.64,127.62,7.89164288]
[1741723340160,0.05644466,127.64,127.62,0.05404288]
[1741723340961,0.05644466,127.64,127.63,7.8373]
[1741723341863,0.05644466,127.64,127.62,0.05404288]
[1741723341864,0.05644466,127.64,127.62,7.89174288]
[1741723342756,0.05644466,127.64,127.62,0.05404288]
[1741723342964,0.05644466,127.64,127.63,7.8373]
[1741723343463,0.05644466,127.64,127.62,7.89164288]
[1741723343760,0.05644466,127.64,127.62,0.05404288]
[1741723344364,0.05644466,127.64,127.63,7.8373]
[1741723344560,0.05644466,127.64,127.62,34.73404288]
[1741723345565,0.05644466,127.64,127.63,7.8373]
[1741723349762,2.099,127.68,127.62,34.73404288]
[1741723351169,7.89092695,127.66,127.62,34.73404288]
[1741723351363,0.05542695,127.66,127.62,34.73404288]
[1741723351870,7.89122695,127.66,127.62,34.73404288]
[1741723352071,0.05542695,127.66,127.62,34.73404288]
[1741723352273,17.96063934,127.66,127.62,34.73404288]
[1741723352467,0.05542695,127.66,127.62,34.73404288]
[1741723353163,17.96063934,127.66,127.62,34.73404288]
[1741723353365,25.79643934,127.66,127.63,7.8367]
[1741723353573,17.90521239,127.64,127.54,15.6851]
[1741723353768,17.90521239,127.64,127.56,34.22]
[1741723353965,25.74231239,127.64,127.56,34.22]
[1741723354371,17.90521239,127.64,127.56,34.22]
[1741723354575,17.90521239,127.64,127.59,7.8393]
[1741723354770,0.05255487,127.61,127.59,7.8943633]
[1741723354971,0.05255487,127.61,127.59,0.0550633]
[1741723355273,25.74431239,127.6,127.59,0.0550633]
[1741723355575,0.05255487,127.61,127.59,0.0550633]
[1741723356770,0.05255487,127.61,127.6,7.8391]
[1741723356972,0.05255487,127.61,127.59,34.2550633]
[1741723357470,7.8391,127.6,127.59,34.2550633]
[1741723357865,7.8391,127.6,127.59,0.0550633]
[1741723358069,7.89135487,127.61,127.59,0.0550633]
[1741723358265,0.05255487,127.61,127.59,0.0550633]
[1741723358473,0.05255487,127.61,127.6,7.8391]
[1741723358875,0.05255487,127.61,127.59,0.0550633]
[1741723359573,0.05255487,127.61,127.6,7.8391]
[1741723363581,2.0811,127.66,127.6,34.06]
[1741723363880,7.8361,127.65,127.6,34.06]
[1741723364070,7.8361,127.65,127.62,7.8375]
[1741723364477,9.9167,127.66,127.6,34.06]
[1741723364780,0.05597762,127.65,127.62,7.88700417]
[1741723364975,0.05597762,127.65,127.62,0.04970417]
[1741723365176,28.66620057,127.63,127.57,34.06]
[1741723365380,28.66620057,127.63,127.58,7.8401]
[1741723365682,7.8394,127.6,127.58,7.8401]
[1741723366277,7.89487506,127.6,127.58,7.89486496]
[1741723366477,0.05547506,127.6,127.59,7.8397]
[1741723367980,2.0811,127.66,127.63,7.8368]
[1741723368182,2.0811,127.66,127.61,33.96]
[1741723369291,7.89226007,127.65,127.62,0.0563339]
[1741723369481,0.05586007,127.65,127.62,0.0563339]
[1741723369684,7.89216007,127.65,127.63,7.837]
[1741723369888,0.05586007,127.65,127.63,7.837]
[1741723370281,0.05586007,127.65,127.62,0.0563339]
[1741723371579,0.05586007,127.65,127.64,7.8367]
[1741723373482,0.05586007,127.65,127.63,7.8371]
[1741723374392,0.05586007,127.65,127.62,7.8939339]
[1741723374587,0.05586007,127.65,127.62,0.0563339]
[1741723374795,28.66620057,127.64,127.62,0.0563339]
[1741723374990,7.8373,127.63,127.62,0.0563339]
[1741723375191,4.1615,127.63,127.57,33.7]
[1741723375494,7.8393,127.6,127.57,41.5406]
[1741723375694,28.66620057,127.62,127.57,41.5406]
[1741723375891,28.66620057,127.62,127.57,33.7]
[1741723376091,7.8401,127.59,127.57,33.7]
[1741723376301,17.92315814,127.6,127.58,0.05363832]
[1741723376594,25.76265814,127.6,127.58,0.05363832]
[1741723377398,17.92315814,127.6,127.58,0.05363832]
[1741723378292,17.97794709,127.61,127.58,0.05363832]
[1741723378497,0.05478895,127.61,127.58,7.89363832]
[1741723379094,7.89358895,127.61,127.58,7.89363832]
[1741723379597,0.05478895,127.61,127.59,7.8397]
[1741723379793,0.05478895,127.61,127.58,0.05363832]
[1741723380193,0.05478895,127.61,127.59,7.8395]
[1741723380392,0.05478895,127.61,127.58,0.05363832]
[1741723380787,0.05478895,127.61,127.6,7.8391]
[1741723381397,258.56,127.65,127.64,7.8367]
[1741723381697,258.56,127.65,127.6,2.1524]
[1741723381892,258.56,127.65,127.63,7.837]
[1741723382398,258.56,127.65,127.63,7.89503798]
[1741723382399,258.6182348,127.65,127.63,7.89503798]
[1741723382598,258.6182348,127.65,127.63,0.05803798]
[1741723383304,258.6182348,127.65,127.64,7.8367]
[1741723383601,0.0582348,127.65,127.64,7.8367]
[1741723384605,0.0582348,127.65,127.63,41.53513798]
[1741723384797,0.0582348,127.65,127.63,0.05803798]
[1741723385192,0.0582348,127.65,127.64,7.8367]
[1741723387400,0.0582348,127.65,127.63,0.05803798]
[1741723389499,0.0582348,127.65,127.63,7.89523798]
[1741723389701,7.8944348,127.65,127.63,0.05803798]
[1741723390002,0.0582348,127.65,127.63,7.89523798]
[1741723390397,0.0582348,127.65,127.63,0.05803798]
[1741723390904,7.8367,127.64,127.63,0.05803798]
[1741723391101,0.0582348,127.65,127.63,0.05803798]
[1741723392511,7.8947348,127.65,127.63,0.05803798]
[1741723392704,0.0582348,127.65,127.63,0.05803798]
[1741723393105,7.8946348,127.65,127.63,0.05803798]
[1741723393298,0.0582348,127.65,127.63,0.05803798]
[1741723393707,7.8945348,127.65,127.63,0.05803798]
[1741723394105,0.0582348,127.65,127.63,0.05803798]
[1741723394306,0.0582348,127.65,127.63,7.89493798]
[1741723395009,0.0582348,127.65,127.63,0.05803798]
[1741723395208,7.8947348,127.65,127.63,0.05803798]
[1741723395712,7.8367,127.64,127.63,0.05803798]
[1741723397209,0.0582348,127.65,127.63,0.05803798]
[1741723397912,7.8945348,127.65,127.63,0.05803798]
[1741723398114,0.0582348,127.65,127.63,0.05803798]
[1741723398415,7.8367,127.64,127.63,0.05803798]
[1741723399311,7.8388,127.61,127.57,37.659]
[1741723399808,4.1403,127.65,127.56,1.9612]
[1741723400007,28.64189763,127.63,127.56,33.64]
[1741723400311,33.64,127.64,127.52,6.2106]
[1741723400511,28.64189763,127.6,127.51,167.64708595]
[1741723400812,28.64189763,127.58,127.51,201.28708595]
[1741723401116,28.64189763,127.58,127.49,120.4983274]
[1741723401412,28.64189763,127.58,127.5,41.4849]
[1741723401616,7.8435,127.53,127.5,33.64]
[1741723401910,0.0512612,127.55,127.49,118.3945274]
[1741723402119,7.8447,127.51,127.5,0.05618715]
[1741723402418,0.05323696,127.52,127.5,0.05618715]
[1741723403811,7.8447,127.51,127.5,0.05618715]
[1741723404315,17.95207459,127.51,127.49,43.33861034]
[1741723404618,17.95207459,127.51,127.43,17.95207459]
[1741723404809,17.95207459,127.51,127.39,6.1262]
[1741723405004,17.95207459,127.51,127.42,17.95207459]
[1741723405512,0.06019314,127.49,127.46,0.05057815]
[1741723407010,0.06019314,127.49,127.46,7.89797815]
[1741723407615,0.06019314,127.49,127.46,0.05057815]
[1741723410417,0.06019314,127.49,127.48,7.8465]
[1741723410717,0.06019314,127.49,127.46,0.05057815]
[1741723410914,7.90649314,127.49,127.46,7.89797815]
[1741723411310,0.06019314,127.49,127.47,7.8468]
[1741723412322,0.06019314,127.49,127.46,0.05057815]
[1741723412522,18.01226773,127.49,127.46,0.05057815]
[1741723414213,0.06019314,127.49,127.47,7.8468]
[1741723414517,0.06019314,127.49,127.46,0.05057815]
[1741723415213,0.06019314,127.49,127.47,7.8465]
[1741723415408,0.06019314,127.49,127.46,0.05057815]
[1741723415814,29.04043,127.56,127.47,33.66]
[1741723416113,46.99250459,127.56,127.48,6.2377]
[1741723416314,7.8425,127.55,127.48,6.2377]
[1741723416608,17.95207459,127.54,127.48,6.2377]
[1741723416817,17.95207459,127.54,127.49,7.8456]
[1741723417021,7.90457921,127.52,127.5,0.0597854]
[1741723418019,7.8447,127.51,127.5,0.0597854]
[1741723418321,18.0120538,127.52,127.47,33.66]
[1741723418520,7.8463,127.49,127.47,33.66]
[1741723419220,7.8465,127.48,127.47,33.66]
[1741723419415,17.95207459,127.48,127.47,0.05649168]
[1741723419922,25.79857459,127.48,127.47,0.05649168]
[1741723420513,7.8481,127.46,127.43,7.8493]
[1741723420717,25.80017459,127.46,127.43,7.8493]
[1741723421724,25.85493079,127.46,127.43,7.8493]
[1741723422623,18.00683079,127.46,127.39,4.0435]
[1741723422828,18.00683079,127.46,127.4,33.66]
[1741723423016,18.00683079,127.46,127.39,4.0435]
[1741723423220,7.8499,127.43,127.4,7.8511]
[1741723423726,7.90884649,127.43,127.4,7.8511]
[1741723424129,0.05894649,127.43,127.41,7.8505]
[1741723424335,0.05894649,127.43,127.38,33.66]
[1741723424726,0.05894649,127.43,127.42,7.8502]
[1741723424925,0.05894649,127.43,127.38,33.66]
[1741723425434,7.8503,127.42,127.38,33.66]
[1741723425629,17.95207459,127.42,127.37,2.0897]
[1741723425931,0.05894649,127.43,127.4,7.8514]
[1741723426325,7.90894649,127.43,127.4,7.8514]
[1741723426527,0.05894649,127.43,127.39,7.8517]
[1741723426721,0.05894649,127.43,127.37,2.0897]
[1741723427226,0.05894649,127.43,127.41,7.8504]
[1741723427628,0.05894649,127.43,127.42,7.8502]
[1741723428931,25.79897459,127.48,127.45,7.848]
[1741723429328,17.95207459,127.48,127.41,1.9544]
[1741723429528,266.6661,127.49,127.46,7.8474]
[1741723429829,258.82,127.49,127.42,2.0903]
[1741723430026,7.847,127.48,127.44,7.8489]
[1741723430326,0.05538852,127.47,127.44,0.05273042]
[1741723431029,0.05538852,127.47,127.45,7.8481]
[1741723431430,0.05538852,127.47,127.44,0.05273042]
[1741723431735,0.05538852,127.47,127.46,7.8477]
[1741723432826,0.05538852,127.47,127.44,33.73273042]
[1741723433733,0.05538852,127.47,127.45,7.8484]
[1741723433931,0.05538852,127.47,127.44,33.73273042]
[1741723434632,0.05538852,127.47,127.46,7.8477]
[1741723434930,0.05538852,127.47,127.44,33.73273042]
[1741723435433,0.05538852,127.47,127.46,7.8477]
[1741723438425,0.05538852,127.47,127.45,7.8478]
[1741723438636,0.05538852,127.47,127.44,33.73273042]
[1741723439036,0.05538852,127.47,127.45,7.8484]
[1741723439336,0.05538852,127.47,127.44,33.73273042]
[1741723439738,0.05538852,127.47,127.46,7.8477]
[1741723440033,0.05538852,127.47,127.44,33.73273042]
[1741723440234,0.05538852,127.47,127.46,7.8477]
[1741723450044,276.85207459,127.53,127.44,51.68480501]
[1741723450244,276.85207459,127.53,127.44,51.63207459]
[1741723450444,7.8447,127.52,127.44,51.63207459]
[1741723450647,7.8447,127.52,127.49,7.8455]
[1741723450941,97.87672788,127.56,127.48,51.61207459]
[1741723451139,0.05851732,127.52,127.49,37.73117218]
[1741723453242,0.05851732,127.52,127.51,7.8447]
[1741723453548,72.56473372,127.56,127.5,17.95207459]
[1741723453743,36.88233,127.56,127.5,17.95207459]
[1741723453941,17.95207459,127.55,127.49,37.6807]
[1741723454135,17.95207459,127.55,127.49,33.66]
[1741723454341,7.8441,127.52,127.49,41.5056]
[1741723454646,0.05616857,127.52,127.49,33.71815764]
[1741723454842,0.05616857,127.52,127.49,0.05815764]
[1741723455041,17.95207459,127.51,127.49,0.05815764]
[1741723455441,276.77207459,127.51,127.4,17.95207459]
[1741723455641,17.95207459,127.48,127.41,33.64]
[1741723456248,17.95207459,127.48,127.44,7.8485]
[1741723456642,0.05920534,127.47,127.45,0.05303684]
[1741723457046,0.05920534,127.47,127.45,7.90133684]
[1741723457246,0.05920534,127.47,127.45,33.69303684]
[1741723457951,0.05920534,127.47,127.46,7.8477]
[1741723463154,258.82,127.51,127.45,33.69303684]
[1741723463357,258.82,127.51,127.5,7.8453]
[1741723464954,0.05408973,127.52,127.49,33.68966151]
[1741723465457,0.05408973,127.52,127.5,7.845]
[1741723465857,0.05408973,127.52,127.49,33.68966151]
[1741723466756,0.05408973,127.52,127.51,7.8447]
[1741723467946,0.05408973,127.52,127.5,7.845]
[1741723468453,0.05408973,127.52,127.5,7.8453]
[1741723468657,0.05408973,127.52,127.49,33.68966151]
[1741723469051,0.05408973,127.52,127.51,7.8447]
[1741723472964,0.05408973,127.52,127.5,7.845]
[1741723473955,0.05408973,127.52,127.49,33.68966151]
[1741723474360,0.05408973,127.52,127.5,7.8453]
[1741723475165,0.05408973,127.52,127.49,33.68966151]
[1741723475365,0.05408973,127.52,127.51,7.8447]
[1741723487268,0.05408973,127.52,127.51,19.32096287]
[1741723488076,48.35839287,127.56,127.54,7.8425]
[1741723489175,48.41240724,127.56,127.54,7.90078787]
[1741723489970,48.41240724,127.56,127.54,0.05828787]
[1741723491372,48.41240724,127.56,127.54,7.90108787]
[1741723491574,48.41240724,127.56,127.54,0.05828787]
[1741723492376,48.41240724,127.56,127.54,7.90108787]
[1741723494376,40.57070724,127.56,127.54,7.90108787]
[1741723494579,29.09444437,127.56,127.54,7.90108787]
[1741723494874,40.57070724,127.56,127.54,7.90108787]
[1741723496278,40.57070724,127.56,127.54,0.05828787]
[1741723496279,48.41260724,127.56,127.54,0.05828787]
[1741723496869,48.41260724,127.56,127.54,7.90108787]
[1741723497684,40.57070724,127.56,127.54,0.05828787]
[1741723497874,7.8422,127.55,127.54,0.05828787]
[1741723498272,48.41260724,127.56,127.54,0.05828787]
[1741723499082,11.47626287,127.55,127.46,2.1533]
[1741723499280,29.09444437,127.56,127.47,33.58]
[1741723499281,11.47626287,127.51,127.47,33.58]
[1741723499482,11.47626287,127.51,127.46,11.47626287]
[1741723499685,11.47626287,127.49,127.46,41.4274]
[1741723499981,11.47626287,127.49,127.46,33.58]
[1741723500189,11.47626287,127.49,127.47,7.8468]
[1741723500481,0.05749806,127.49,127.46,45.10807517]
[1741723501077,11.47626287,127.48,127.46,0.0518123]
[1741723501277,7.8471,127.47,127.46,0.0518123]
[1741723501483,19.32336287,127.47,127.46,0.0518123]
[1741723502081,11.47626287,127.47,127.46,0.0518123]
[1741723502687,0.05749806,127.49,127.46,11.52807517]
[1741723503181,0.05749806,127.49,127.47,33.58]
[1741723503690,7.8465,127.48,127.47,33.58]
[1741723503988,11.53376093,127.49,127.47,33.58]
[1741723504188,11.47626287,127.48,127.47,33.58]
[1741723504389,11.47626287,127.48,127.46,0.0518123]
[1741723504588,11.47626287,127.47,127.46,0.0518123]
[1741723504991,0.05749806,127.49,127.46,0.0518123]
[1741723505290,0.05749806,127.49,127.48,11.47626287]
[1741723505485,0.05749806,127.49,127.48,19.32276287]
[1741723505687,11.47626287,127.54,127.48,11.47626287]
[1741723505886,11.47626287,127.54,127.51,7.8443]
[1741723506084,11.47626287,127.53,127.49,33.58]
[1741723506385,11.47626287,127.53,127.51,7.8446]
[1741723506684,11.47626287,127.53,127.49,33.58]
[1741723506890,11.53649767,127.53,127.51,0.05716806]
[1741723507089,19.38029767,127.53,127.51,0.05716806]
[1741723507291,11.53649767,127.53,127.51,0.05716806]
[1741723508083,0.0602348,127.53,127.51,0.05716806]
[1741723508290,0.0602348,127.53,127.52,19.32036287]
[1741723510289,0.0602348,127.53,127.52,7.8441]
[1741723510992,29.04043,127.56,127.55,7.8422]
[1741723511190,29.04043,127.56,127.55,41.4022]
[1741723511388,29.04043,127.56,127.55,33.56]
[1741723512194,29.04043,127.56,127.55,41.4022]
[1741723513894,10.88107593,127.63,127.6,7.839]
[1741723514282,17.92591793,127.62,127.56,33.56]
[1741723514489,17.92591793,127.6,127.56,33.56]
[1741723514687,7.8389,127.61,127.56,33.56]
[1741723514887,0.05190523,127.59,127.57,7.89888503]
[1741723515089,0.05190523,127.59,127.57,0.05828503]
[1741723515791,17.92591793,127.58,127.53,33.54]
[1741723515991,17.92591793,127.54,127.47,4.28]
[1741723516197,17.92591793,127.52,127.47,35.6659]
[1741723516594,17.92591793,127.52,127.47,43.5125]
[1741723516789,17.92591793,127.52,127.47,41.3866]
[1741723516983,25.77021793,127.52,127.49,7.8459]
[1741723517184,0.058274,127.51,127.48,0.06041014]
[1741723517592,7.4e-05,127.51,127.5,7.8453]
[1741723520797,7.4e-05,127.51,127.5,25.77121793]
[1741723521000,7.4e-05,127.51,127.5,27.79881793]
[1741723521601,258.74,127.6,127.5,40.23943586]
[1741723521906,258.74,127.6,127.54,17.92591793]
[1741723522131,258.74,127.6,127.55,33.54]